fUST/lending_fUST_20241008
["ID","MTS","AMOUNT","RATE_DAILY","PERIOD"]
[340033285,1728340243355,-192.479763,0.00038356,14]
[340033286,1728340243364,-500.0,0.00038356,120]
[340033287,1728340243374,-500.0,0.00038356,120]
[340033288,1728340243384,-500.0,0.00038356,120]
[340033289,1728340243394,-500.0,0.00038356,120]
[340033290,1728340243403,-1018.600431,0.00038356,14]
[340033291,1728340243413,-1018.600431,0.00038356,14]
[340033292,1728340243422,-500.0,0.00038356,120]
[340033293,1728340243432,-1018.600431,0.00038356,14]
[340033294,1728340243443,-500.0,0.00038356,120]
[340033295,1728340243453,-1018.600431,0.00038356,14]
[340033296,1728340243462,-500.0,0.00038356,120]
[340033297,1728340243472,-151.0,0.00038356,14]
[340033298,1728340243482,-151.0,0.00038356,14]
[340033299,1728340243491,-500.0,0.00038356,120]
[340033300,1728340243502,-500.0,0.00038356,120]
[340033301,1728340243512,-443.65388381,0.00038356,120]
[340033302,1728340243522,-500.0,0.00038356,120]
[340033303,1728340243531,-151.0,0.00038356,14]
[340033304,1728340243541,-500.0,0.00038356,120]
[340033305,1728340243551,-5505.57,0.00038356,18]
[340033306,1728340243560,-500.0,0.00038356,120]
[340033307,1728340243570,-151.0,0.00038356,7]
[340033308,1728340243579,-151.0,0.00038356,7]
[340033309,1728340243590,-500.0,0.00038356,120]
[340033310,1728340243600,-198.0,0.00038356,14]
[340033311,1728340243609,-500.0,0.00038356,120]
[340033312,1728340243619,-500.0,0.00038356,21]
[340033313,1728340243629,-500.0,0.00038356,120]
[340033314,1728340243638,-151.0,0.00038356,14]
[340033315,1728340243648,-151.0,0.00038356,14]
[340033316,1728340243659,-500.0,0.00038356,30]
[340033317,1728340243670,-500.0,0.00038356,120]
[340033318,1728340243681,-500.0,0.00038356,120]
[340033319,1728340243692,-500.0,0.00038356,120]
[340033320,1728340243702,-621.33,0.00038356,120]
[340033321,1728340243712,-500.0,0.00038356,120]
[340033322,1728340243722,-261.0,0.00038383,14]
[340033323,1728340243732,-650.0,0.00038412,5]
[340033324,1728340243742,-150.112233,0.000385,7]
[340033325,1728340243752,-1412.71422264,0.0003852,2]
[340033326,1728340243761,-151.0,0.0003862,14]
[340033327,1728340243771,-9088.54011112,0.0003862,5]
[340033401,1728341432532,-199.224407,0.00018,2]
[340033402,1728341432542,-199.224407,0.00024262,2]
[340033403,1728341432551,-29.65788932,0.0002608,2]
[340033404,1728341432562,-142.94630568,0.0002608,2]
[340033405,1728341432571,-174.392196,0.00026479,2]
[340033406,1728341432580,-2310.41683379,0.00026716,2]
[340033428,1728341438804,-2768.69358841,0.00026716,2]
[340033429,1728341438814,-58.60120759,0.00026824,2]
[340033438,1728341440666,-115.79098841,0.00026824,2]
[340033439,1728341440678,-439.326144,0.00026928,2]
[340033440,1728341440689,-174.392196,0.00027169,2]
[340033442,1728341440699,-174.392196,0.00027514,2]
[340033443,1728341440708,-174.392196,0.00027859,2]
[340033444,1728341440717,-166.666666,0.00028363,2]
[340033445,1728341440728,-1482.6729445,0.00028768,2]
[340033446,1728341440739,-1173.67454929,0.00028855,14]
[340033447,1728341440750,-24900.0,0.00028855,2]
[340033448,1728341440761,-159.534834,0.00028868,2]
[340033449,1728341440773,-250.0,0.00028899,2]
[340033450,1728341440783,-3000.0,0.000289,2]
[340033451,1728341440795,-2118.698413,0.00029068,2]
[340033452,1728341440805,-2118.698413,0.00029753,2]
[340033453,1728341440814,-2118.698413,0.00030438,2]
[340033454,1728341440825,-199.224407,0.00030525,2]
[340033455,1728341440836,-872.63585884,0.00030675,2]
[340033456,1728341440962,-170.741,0.00034362,38]
[340033457,1728341440973,-150.0,0.00034558,14]
[340033458,1728341440984,-150.0,0.00034558,14]
[340033459,1728341440998,-200.0,0.00034558,14]
[340033460,1728341441009,-3000.0,0.00034558,113]
[340033461,1728341441020,-1482.67294447,0.00035384,2]
[340033462,1728341441031,-199.224407,0.00036787,2]
[340033463,1728341441041,-150.0,0.00037266,2]
[340033464,1728341441051,-510.037,0.00037266,2]
[340033465,1728341441060,-214.508,0.00037266,2]
[340033466,1728341441072,-156.224,0.00037266,2]
[340033467,1728341441081,-250.0,0.00037266,2]
[340033468,1728341441091,-158.0,0.00038,2]
[340033469,1728341441101,-12295.98,0.00038336,10]
[340033470,1728341441112,-450.66055765,0.00038345,15]
[340033471,1728341441122,-2083.19068724,0.00038346,5]
[340033472,1728341441135,-26958.84402774,0.00038346,5]
[340033479,1728341443625,-13959.22816202,0.00038346,5]
[340033480,1728341443637,-3043.42400594,0.00038346,5]
[340033481,1728341443647,-14755.18,0.00038346,10]
[340033482,1728341443659,-545.79699651,0.00038355,15]
[340033483,1728341443670,-500.0,0.00038356,120]
[340033484,1728341443680,-500.0,0.00038356,120]
[340033485,1728341443690,-500.0,0.00038356,120]
[340033486,1728341443700,-500.0,0.00038356,120]
[340033487,1728341443710,-500.0,0.00038356,120]
[340033488,1728341443720,-500.0,0.00038356,120]
[340033489,1728341443730,-500.91033364,0.00038356,120]
[340033490,1728341443741,-500.0,0.00038356,120]
[340033491,1728341443751,-500.0,0.00038356,120]
[340033492,1728341443760,-500.19134765,0.00038356,7]
[340033493,1728341443771,-318.54,0.00038356,120]
[340033494,1728341443781,-354.82,0.00038356,120]
[340033495,1728341443790,-500.0,0.00038356,120]
[340033497,1728341443799,-500.0,0.00038356,120]
[340033499,1728341443809,-500.0,0.00038356,120]
[340033500,1728341443819,-500.0,0.00038356,120]
[340033501,1728341443829,-500.0,0.00038356,120]
[340033502,1728341443839,-500.0,0.00038356,120]
[340033503,1728341443848,-500.0,0.00038356,120]
[340033504,1728341443859,-500.0,0.00038356,120]
[340033505,1728341443868,-154.43,0.00038356,120]
[340033506,1728341443879,-529.92,0.00038356,120]
[340033507,1728341443889,-494.42,0.00038356,120]
[340033508,1728341443899,-500.0,0.00038356,120]
[340033509,1728341443910,-500.0,0.00038356,120]
[340033510,1728341443920,-154.2560467,0.00038356,120]
[340033511,1728341443930,-500.0,0.00038356,120]
[340033512,1728341443941,-500.0,0.00038356,120]
[340033513,1728341443952,-272.84,0.00038356,120]
[340033514,1728341443962,-347.96,0.00038356,120]
[340033515,1728341443973,-500.0,0.00038356,120]
[340033516,1728341443983,-162.55,0.00038356,120]
[340033517,1728341443996,-500.0,0.00038356,120]
[340033518,1728341444005,-500.0,0.00038356,120]
[340033519,1728341444014,-560.04,0.00038356,120]
[340033520,1728341444037,-500.0,0.00038356,120]
[340033521,1728341444048,-500.0,0.00038356,120]
[340033522,1728341444058,-500.0,0.00038356,120]
[340033523,1728341444070,-500.0,0.00038356,120]
[340033524,1728341444080,-500.0,0.00038356,120]
[340033525,1728341444088,-500.0,0.00038356,120]
[340033526,1728341444098,-500.0,0.00038356,120]
[340033527,1728341444108,-500.0,0.00038356,7]
[340033528,1728341444117,-514.09,0.00038356,120]
[340033529,1728341444126,-515.25238835,0.00038356,120]
[340033530,1728341444136,-500.0,0.00038356,120]
[340033531,1728341444145,-500.0,0.00038356,120]
[340033532,1728341444154,-500.0,0.00038356,120]
[340033533,1728341444165,-500.0,0.00038356,120]
[340033534,1728341444174,-516.1,0.00038356,120]
[340033535,1728341444183,-416.32,0.00038356,120]
[340033536,1728341444192,-500.0,0.00038356,120]
[340033537,1728341444202,-500.0,0.00038356,120]
[340033538,1728341444211,-616.42,0.00038356,120]
[340033539,1728341444221,-500.0,0.00038356,120]
[340033540,1728341444230,-447.0,0.00038356,120]
[340033541,1728341444239,-500.0,0.00038356,120]
[340033542,1728341444249,-500.0,0.00038356,120]
[340033543,1728341444258,-500.0,0.00038356,120]
[340033544,1728341444269,-640.85,0.00038356,120]
[340033545,1728341444278,-198.89,0.00038356,120]
[340033546,1728341444287,-500.0,0.00038356,120]
[340033547,1728341444296,-500.0,0.00038356,120]
[340033548,1728341444307,-500.0,0.00038356,120]
[340033549,1728341444316,-607.01,0.00038356,120]
[340033550,1728341444327,-500.0,0.00038356,120]
[340033551,1728341444336,-500.0,0.00038356,120]
[340033552,1728341444345,-603.02038679,0.00038356,120]
[340033553,1728341444355,-500.0,0.00038356,120]
[340033554,1728341444365,-500.0,0.00038356,120]
[340033555,1728341444374,-563.94,0.00038356,120]
[340033556,1728341444385,-500.0,0.00038356,120]
[340033557,1728341444394,-500.0,0.00038356,7]
[340033558,1728341444404,-519.66,0.00038356,120]
[340033559,1728341444414,-500.0,0.00038356,120]
[340033560,1728341444424,-500.0,0.00038356,120]
[340033561,1728341444433,-504.44,0.00038356,120]
[340033562,1728341444443,-376.38,0.00038356,120]
[340033563,1728341444452,-518.17424462,0.00038356,120]
[340033564,1728341444462,-500.0,0.00038356,120]
[340033565,1728341444471,-500.0,0.00038356,120]
[340033566,1728341444481,-500.0,0.00038356,120]
[340033567,1728341444490,-500.0,0.00038356,120]
[340033568,1728341444500,-589.69,0.00038356,120]
[340033569,1728341444510,-500.0,0.00038356,120]
[340033570,1728341444520,-500.0,0.00038356,120]
[340033571,1728341444531,-500.0,0.00038356,120]
[340033572,1728341444541,-500.0,0.00038356,120]
[340033573,1728341444551,-500.0,0.00038356,120]
[340033574,1728341444563,-500.0,0.00038356,120]
[340033575,1728341444573,-500.0,0.00038356,120]
[340033576,1728341444583,-500.0,0.00038356,120]
[340033577,1728341444593,-500.0,0.00038356,120]
[340033578,1728341444603,-500.0,0.00038356,120]
[340033579,1728341444612,-500.0,0.00038356,120]
[340033580,1728341444624,-595.44,0.00038356,120]
[340033581,1728341444635,-500.0,0.00038356,120]
[340033582,1728341444644,-500.0,0.00038356,120]
[340033583,1728341444654,-500.0,0.00038356,120]
[340033584,1728341444663,-500.0,0.00038356,120]
[340033585,1728341444673,-500.0,0.00038356,120]
[340033586,1728341444683,-500.0,0.00038356,120]
[340033587,1728341444692,-500.0,0.00038356,120]
[340033588,1728341444701,-500.0,0.00038356,120]
[340033589,1728341444712,-522.7,0.00038356,120]
[340033590,1728341444721,-500.0,0.00038356,120]
[340033591,1728341444730,-500.0,0.00038356,120]
[340033592,1728341444741,-500.0,0.00038356,120]
[340033593,1728341444752,-500.0,0.00038356,120]
[340033594,1728341444761,-500.0,0.00038356,120]
[340033595,1728341444773,-500.0,0.00038356,120]
[340033596,1728341444783,-500.0,0.00038356,120]
[340033597,1728341444793,-500.45372874,0.00038356,120]
[340033598,1728341444803,-500.0,0.00038356,120]
[340033599,1728341444813,-500.0,0.00038356,120]
[340033600,1728341444823,-500.0,0.00038356,120]
[340033601,1728341444832,-598.79,0.00038356,120]
[340033602,1728341444842,-500.0,0.00038356,120]
[340033603,1728341444852,-456.37745297,0.00038356,120]
[340033604,1728341444861,-500.0,0.00038356,30]
[340033605,1728341444871,-500.0,0.00038356,120]
[340033606,1728341444881,-463.75,0.00038356,7]
[340033607,1728341444891,-256.7,0.00038356,120]
[340033608,1728341444900,-539.86,0.00038356,120]
[340033609,1728341444910,-500.0,0.00038356,120]
[340033610,1728341444919,-500.0,0.00038356,120]
[340033611,1728341444929,-315.36,0.00038356,120]
[340033612,1728341444938,-500.0,0.00038356,120]
[340033613,1728341444947,-500.0,0.00038356,120]
[340033614,1728341444957,-500.0,0.00038356,120]
[340033615,1728341444967,-500.0,0.00038356,120]
[340033616,1728341444977,-500.0,0.00038356,120]
[340033617,1728341444986,-500.0,0.00038356,120]
[340033618,1728341444999,-500.0,0.00038356,120]
[340033619,1728341445010,-500.0,0.00038356,120]
[340033620,1728341445021,-320.58,0.00038356,120]
[340033621,1728341445032,-500.0,0.00038356,120]
[340033622,1728341445042,-500.0,0.00038356,120]
[340033623,1728341445052,-500.0,0.00038356,120]
[340033624,1728341445061,-500.0,0.00038356,120]
[340033625,1728341445072,-500.0,0.00038356,120]
[340033626,1728341445081,-500.0,0.00038356,120]
[340033627,1728341445090,-500.0,0.00038356,120]
[340033628,1728341445099,-574.93,0.00038356,120]
[340033629,1728341445108,-500.0,0.00038356,120]
[340033630,1728341445118,-500.0,0.00038356,120]
[340033631,1728341445128,-500.0,0.00038356,120]
[340033632,1728341445137,-500.0,0.00038356,120]
[340033633,1728341445147,-500.0,0.00038356,120]
[340033634,1728341445156,-500.0,0.00038356,120]
[340033635,1728341445166,-500.0,0.00038356,120]
[340033636,1728341445175,-500.0,0.00038356,120]
[340033637,1728341445184,-500.0,0.00038356,2]
[340033638,1728341445194,-500.0,0.00038356,2]
[340033639,1728341445203,-207.46,0.00038356,2]
[340033640,1728341445212,-565.16,0.00038356,120]
[340033641,1728341445221,-501.8,0.00038356,120]
[340033642,1728341445231,-500.0,0.00038356,120]
[340033643,1728341445240,-550.48,0.00038356,120]
[340033644,1728341445250,-500.0,0.00038356,90]
[340033645,1728341445259,-500.0,0.00038356,120]
[340033646,1728341445269,-500.0,0.00038356,120]
[340033647,1728341445277,-564.49,0.00038356,120]
[340033648,1728341445286,-500.0,0.00038356,120]
[340033649,1728341445295,-500.0,0.00038356,120]
[340033650,1728341445304,-527.94478923,0.00038356,120]
[340033651,1728341445313,-224.27440921,0.00038356,120]
[340033652,1728341445323,-500.0,0.00038356,120]
[340033653,1728341445333,-467.47,0.00038356,120]
[340033654,1728341445342,-500.0,0.00038356,120]
[340033655,1728341445351,-500.0,0.00038356,120]
[340033656,1728341445360,-408.13,0.00038356,120]
[340033657,1728341445370,-500.0,0.00038356,120]
[340033658,1728341445379,-500.0,0.00038356,120]
[340033659,1728341445389,-500.0,0.00038356,120]
[340033660,1728341445399,-500.0,0.00038356,120]
[340033661,1728341445408,-500.0,0.00038356,7]
[340033662,1728341445418,-500.0,0.00038356,120]
[340033663,1728341445428,-500.0,0.00038356,120]
[340033664,1728341445438,-500.0,0.00038356,120]
[340033665,1728341445448,-500.0,0.00038356,120]
[340033666,1728341445458,-500.0,0.00038356,120]
[340033667,1728341445467,-500.0,0.00038356,120]
[340033668,1728341445476,-500.0,0.00038356,120]
[340033669,1728341445486,-500.0,0.00038356,120]
[340033670,1728341445496,-500.0,0.00038356,120]
[340033671,1728341445506,-500.0,0.00038356,120]
[340033672,1728341445515,-391.03,0.00038356,120]
[340033673,1728341445525,-500.0,0.00038356,120]
[340033674,1728341445534,-500.0,0.00038356,120]
[340033675,1728341445543,-500.0,0.00038356,120]
[340033676,1728341445552,-500.0,0.00038356,120]
[340033677,1728341445561,-500.0,0.00038356,120]
[340033678,1728341445570,-159.08,0.00038356,120]
[340033679,1728341445579,-500.0,0.00038356,120]
[340033680,1728341445589,-500.0,0.00038356,120]
[340033681,1728341445598,-166.75,0.00038356,120]
[340033682,1728341445608,-189.01,0.00038356,120]
[340033683,1728341445618,-616.19,0.00038356,120]
[340033684,1728341445627,-500.0,0.00038356,120]
[340033685,1728341445637,-500.0,0.00038356,120]
[340033686,1728341445646,-500.0,0.00038356,120]
[340033687,1728341445656,-500.0,0.00038356,120]
[340033688,1728341445668,-500.0,0.00038356,120]
[340033689,1728341445679,-500.0,0.00038356,120]
[340033690,1728341445690,-500.0,0.00038356,120]
[340033691,1728341445700,-500.0,0.00038356,120]
[340033692,1728341445710,-500.0,0.00038356,90]
[340033693,1728341445720,-500.0,0.00038356,120]
[340033694,1728341445729,-353.06,0.00038356,120]
[340033695,1728341445739,-500.65490051,0.00038356,120]
[340033696,1728341445749,-500.0,0.00038356,120]
[340033697,1728341445760,-500.0,0.00038356,120]
[340033698,1728341445771,-500.0,0.00038356,120]
[340033699,1728341445781,-297.21,0.00038356,120]
[340033700,1728341445791,-500.0,0.00038356,120]
[340033701,1728341445801,-500.0,0.00038356,120]
[340033702,1728341445811,-521.28,0.00038356,120]
[340033703,1728341445821,-500.0,0.00038356,120]
[340033704,1728341445831,-500.0,0.00038356,120]
[340033705,1728341445842,-456.30785099,0.00038356,120]
[340033782,1728342635008,-217.26264,0.00018,2]
[340033785,1728342635022,-217.26264,0.00024262,2]
[340033787,1728342635035,-166.666666,0.00024507,2]
[340033789,1728342635047,-192.345866,0.00024836,2]
[340033791,1728342635059,-163.884225,0.00024836,2]
[340033792,1728342635072,-159.180602,0.00024836,2]
[340033793,1728342635083,-330.4626899,0.00025089,2]
[340033794,1728342635095,-192.345866,0.00025146,2]
[340033796,1728342635107,-250.0,0.00025146,2]
[340033798,1728342635118,-163.092203,0.00025147,2]
[340033800,1728342635130,-163.092203,0.0002521,2]
[340033801,1728342635141,-250.0,0.00025215,2]
[340033802,1728342635154,-163.092203,0.00025272,2]
[340033803,1728342635165,-250.0,0.00025284,2]
[340033804,1728342635177,-250.0,0.00025353,2]
[340033805,1728342635188,-250.0,0.00025422,2]
[340033806,1728342635200,-159.180602,0.00025457,2]
[340033807,1728342635211,-192.345866,0.00025457,2]
[340033808,1728342635222,-250.0,0.00025491,2]
[340033809,1728342635238,-250.0,0.0002556,2]
[340033810,1728342635251,-250.0,0.00025629,2]
[340033811,1728342635262,-250.0,0.00025698,2]
[340033812,1728342635274,-192.345866,0.00025767,2]
[340033813,1728342635286,-250.0,0.00025767,2]
[340033814,1728342635297,-250.0,0.00025836,2]
[340033815,1728342635309,-300.0,0.00025905,2]
[340033816,1728342635320,-300.0,0.00025905,2]
[340033817,1728342635335,-250.0,0.00025905,2]
[340033818,1728342635346,-250.0,0.00025974,2]
[340033819,1728342635357,-250.0,0.00026043,2]
[340033820,1728342635368,-159.180602,0.00026077,2]
[340033821,1728342635379,-192.345866,0.00026077,2]
[340033822,1728342635391,-250.0,0.00026112,2]
[340033823,1728342635404,-250.0,0.00026181,2]
[340033824,1728342635417,-250.0,0.0002625,2]
[340033825,1728342635428,-250.0,0.00026319,2]
[340033826,1728342635441,-250.0,0.00026388,2]
[340033827,1728342635453,-250.0,0.00026457,2]
[340033828,1728342635466,-420.0,0.00028038,2]
[340033829,1728342635484,-1795.51024089,0.00028091,2]
[340033830,1728342635496,-16071.15096122,0.00028158,2]
[340033831,1728342635512,-486.54876236,0.00028158,2]
[340033832,1728342635527,-1183.13445611,0.00028158,2]
[340033864,1728342637864,-7159.16582031,0.00028158,2]
[340033865,1728342637877,-1885.87033756,0.00028158,14]
[340033866,1728342637890,-354.359812,0.00028191,2]
[340033867,1728342637901,-420.0,0.00028496,2]
[340033868,1728342637914,-3000.0,0.00028501,2]
[340033869,1728342637927,-159.534834,0.00029201,2]
[340033870,1728342637937,-250.0,0.00029343,2]
[340033871,1728342637948,-2118.698413,0.00029408,2]
[340033872,1728342637959,-2118.698413,0.00030093,2]
[340033873,1728342637969,-278.3055074,0.00030113,2]
[340033874,1728342637981,-180.0,0.00030346,2]
[340033875,1728342637994,-490.03699177,0.00030421,2]
[340033876,1728342638006,-217.26264,0.00030525,2]
[340033877,1728342638019,-872.63585884,0.00030684,2]
[340033878,1728342638030,-2118.698413,0.00030778,2]
[340033879,1728342638043,-587.0,0.00031345,2]
[340033880,1728342638054,-466.25184959,0.00031942,2]
[340033881,1728342638065,-170.741,0.00034385,38]
[340033882,1728342638075,-823.0,0.0003448,2]
[340033883,1728342638085,-150.0,0.00034616,14]
[340033884,1728342638098,-150.0,0.00034616,14]
[340033885,1728342638109,-200.0,0.00034616,14]
[340033886,1728342638121,-3000.0,0.00034616,113]
[340033887,1728342638132,-3000.0,0.00034616,116]
[340033888,1728342638144,-880.24010953,0.00034803,2]
[340033889,1728342638163,-915.27013131,0.00034803,2]
[340033890,1728342638173,-217.26264,0.00036787,2]
[340033891,1728342638184,-298.359,0.00037266,2]
[340033892,1728342638198,-150.0,0.00037266,2]
[340033893,1728342638208,-510.037,0.00037266,2]
[340033894,1728342638219,-277.396,0.00037266,2]
[340033895,1728342638231,-956.0,0.00037928,2]
[340033896,1728342638243,-413.1195984,0.0003807,2]
[340033897,1728342638257,-1000.0,0.000382,120]
[340033898,1728342638269,-1437.72415227,0.00038246,2]
[340033899,1728342638281,-5800.0,0.0003825,50]
[340033900,1728342638293,-5164.66483678,0.00038256,2]
[340033901,1728342638304,-500.0,0.00038272,15]
[340033902,1728342638315,-10246.65,0.00038273,10]
[340033903,1728342638327,-8538.88,0.00038273,10]
[340033904,1728342638339,-7115.73,0.00038273,10]
[340033905,1728342638352,-119255.09402,0.00038283,2]
[340033906,1728342638366,-5666.98393358,0.00038284,2]
[340033907,1728342638378,-382.05789756,0.00038314,15]
[340033908,1728342638392,-12295.98,0.00038315,10]
[340033909,1728342638404,-27229.57216145,0.00038324,7]
[340033910,1728342638417,-13747.6740257,0.00038325,5]
[340033911,1728342638428,-54990.6961029,0.00038326,5]
[340033912,1728342638442,-42112.9036477,0.00038335,5]
[340033913,1728342638453,-9371.34938094,0.00038335,7]
[340033914,1728342638466,-42112.9036477,0.00038335,5]
[340033915,1728342638477,-13747.6740257,0.00038335,5]
[340033916,1728342638490,-113753.68597305,0.00038336,5]
[340033917,1728342638716,-914.55,0.00038336,5]
[340033944,1728342640754,-11670.47496995,0.00038336,5]
[340033945,1728342640764,-27495.3480514,0.00038336,5]
[340033946,1728342640774,-151.0,0.00038336,14]
[340033947,1728342640787,-151.0,0.00038336,14]
[340033948,1728342640796,-151.0,0.00038336,14]
[340033949,1728342640806,-151.0,0.00038336,14]
[340033950,1728342640816,-151.0,0.00038336,14]
[340033951,1728342640827,-151.0,0.00038336,14]
[340033952,1728342640836,-257.21794,0.00038336,14]
[340033953,1728342640846,-257.21794,0.00038336,14]
[340033954,1728342640856,-151.0,0.00038336,14]
[340033955,1728342640871,-151.0,0.00038336,14]
[340033956,1728342640880,-450.884789,0.00038336,14]
[340033957,1728342640891,-450.884789,0.00038336,14]
[340033958,1728342640901,-500.0,0.00038345,30]
[340033959,1728342640910,-4333.89,0.00038345,2]
[340033960,1728342640919,-500.0,0.00038345,120]
[340033961,1728342640929,-14136.11833605,0.00038346,5]
[340033962,1728342640941,-70089.68895945,0.00038346,5]
[340033963,1728342640951,-54990.6961029,0.00038346,5]
[340033964,1728342640961,-151.0,0.00038346,14]
[340033965,1728342640970,-151.0,0.00038346,14]
[340033966,1728342640979,-151.0,0.00038346,14]
[340033967,1728342640994,-151.0,0.00038346,14]
[340033968,1728342641003,-151.0,0.00038346,14]
[340033969,1728342641012,-151.0,0.00038346,14]
[340033970,1728342641022,-257.21794,0.00038346,14]
[340033971,1728342641032,-257.21794,0.00038346,14]
[340033972,1728342641042,-151.0,0.00038346,14]
[340033973,1728342641051,-151.0,0.00038346,14]
[340033974,1728342641061,-450.884789,0.00038346,14]
[340033975,1728342641072,-450.884789,0.00038346,14]
[340033976,1728342641082,-999.90001,0.00038355,2]
[340033977,1728342641092,-1000.0,0.00038356,3]
[340033978,1728342641103,-500.0,0.00038356,120]
[340033979,1728342641115,-500.0,0.00038356,120]
[340033980,1728342641125,-500.0,0.00038356,7]
[340033981,1728342641135,-500.0,0.00038356,120]
[340033982,1728342641144,-500.0,0.00038356,120]
[340033983,1728342641154,-500.0,0.00038356,120]
[340033984,1728342641163,-500.0,0.00038356,120]
[340033985,1728342641173,-500.0,0.00038356,120]
[340033986,1728342641183,-500.0,0.00038356,120]
[340033987,1728342641193,-500.0,0.00038356,120]
[340033988,1728342641202,-500.0,0.00038356,120]
[340033989,1728342641212,-500.0,0.00038356,120]
[340033990,1728342641221,-500.0,0.00038356,120]
[340033991,1728342641233,-500.0,0.00038356,120]
[340033992,1728342641242,-500.0,0.00038356,120]
[340033993,1728342641252,-500.0,0.00038356,120]
[340033994,1728342641262,-500.0,0.00038356,120]
[340033995,1728342641273,-571.97935354,0.00038356,120]
[340033996,1728342641283,-500.0,0.00038356,120]
[340033997,1728342641294,-500.0,0.00038356,120]
[340033998,1728342641305,-581.72,0.00038356,120]
[340033999,1728342641315,-500.0,0.00038356,120]
[340034000,1728342641326,-227.15968806,0.00038356,120]
[340034001,1728342641337,-500.0,0.00038356,120]
[340034002,1728342641348,-500.0,0.00038356,120]
[340034003,1728342641359,-622.2597647,0.00038356,120]
[340034004,1728342641370,-500.0,0.00038356,120]
[340034005,1728342641383,-594.52,0.00038356,120]
[340034006,1728342641396,-500.0,0.00038356,120]
[340034007,1728342641407,-500.0,0.00038356,120]
[340034008,1728342641417,-500.0,0.00038356,120]
[340034009,1728342641426,-499.0,0.00038356,120]
[340034010,1728342641436,-500.0,0.00038356,120]
[340034011,1728342641445,-500.0,0.00038356,120]
[340034012,1728342641454,-540.45,0.00038356,120]
[340034013,1728342641464,-500.0,0.00038356,120]
[340034014,1728342641474,-500.0,0.00038356,120]
[340034015,1728342641486,-500.0,0.00038356,7]
[340034016,1728342641496,-500.0,0.00038356,120]
[340034017,1728342641505,-574.14378843,0.00038356,120]
[340034018,1728342641514,-500.0,0.00038356,120]
[340034019,1728342641524,-500.0,0.00038356,120]
[340034020,1728342641533,-513.53425258,0.00038356,120]
[340034021,1728342641543,-541.06,0.00038356,120]
[340034022,1728342641552,-500.0,0.00038356,120]
[340034023,1728342641562,-500.0,0.00038356,120]
[340034024,1728342641573,-500.0,0.00038356,120]
[340034025,1728342641583,-500.0,0.00038356,120]
[340034026,1728342641593,-500.0,0.00038356,120]
[340034027,1728342641603,-500.0,0.00038356,120]
[340034028,1728342641612,-500.0,0.00038356,120]
[340034029,1728342641621,-500.0,0.00038356,120]
[340034030,1728342641630,-500.0,0.00038356,120]
[340034031,1728342641640,-500.0,0.00038356,120]
[340034032,1728342641649,-500.0,0.00038356,120]
[340034033,1728342641658,-500.07731565,0.00038356,120]
[340034034,1728342641667,-500.0,0.00038356,120]
[340034035,1728342641677,-500.0,0.00038356,120]
[340034036,1728342641686,-500.0,0.00038356,120]